fUST/lending_fUST_20251105
["ID","MTS","AMOUNT","RATE_DAILY","PERIOD"]
[393101952,1762272329909,5000.0,0.000211,2]
[393101961,1762272352450,5000.0,0.000211,2]
[393101969,1762272515365,167.887747,0.00013699,2]
[393101970,1762272556438,150.0,0.00017498,2]
[393101971,1762272556861,159.69,0.00019089,2]
[393101972,1762272557313,239.53,0.0002068,2]
[393102028,1762272631887,-150.0,0.00021125,2]
[393102030,1762272631899,-318.0,0.000212,2]
[393102032,1762272631910,-309.63311697,0.000212,2]
[393102034,1762272631924,-150.0,0.00021234,2]
[393102036,1762272631936,-150.0,0.00023045,2]
[393102038,1762272631947,-167.887747,0.00023182,2]
[393102040,1762272631958,-218.56,0.00024966,2]
[393102042,1762272631969,-291.42,0.00026886,2]
[393102044,1762272631979,-250.0,0.0002968,2]
[393102046,1762272631988,-250.0,0.0002968,2]
[393102048,1762272631998,-203.80210293,0.00030137,14]
[393102049,1762272632008,-400.0,0.0003103,2]
[393102051,1762272632017,-165.31068754,0.00031031,2]
[393102053,1762272632027,-418.45603904,0.00031031,4]
[393102055,1762272632037,-1213.20348929,0.00031031,2]
[393102057,1762272632047,-245.19430135,0.00031307,2]
[393102059,1762272632058,-300.0,0.00031651,30]
[393102061,1762272632068,-300.0,0.00031651,30]
[393102063,1762272632079,-300.0,0.00031651,30]
[393102065,1762272632090,-300.0,0.00031651,30]
[393102067,1762272632100,-300.0,0.00031651,30]
[393102069,1762272632109,-300.0,0.00031651,30]
[393102071,1762272632119,-300.0,0.00031651,30]
[393102073,1762272632132,-300.0,0.00031651,30]
[393102075,1762272632141,-300.0,0.00031651,30]
[393102078,1762272632151,-300.0,0.00031651,30]
[393102079,1762272632161,-300.0,0.00031651,30]
[393102081,1762272632171,-300.0,0.00031651,30]
[393102083,1762272632181,-300.0,0.00031651,30]
[393102085,1762272632190,-300.0,0.00031651,30]
[393102087,1762272632200,-300.0,0.00031651,30]
[393102089,1762272632212,-500.0,0.000317,5]
[393102091,1762272632221,-500.0,0.000317,5]
[393102093,1762272632231,-500.0,0.000317,5]
[393102095,1762272632241,-225.083625,0.00031875,2]
[393102097,1762272632251,-1000.0,0.00032248,5]
[393102099,1762272632260,-500.0,0.00032248,5]
[393102101,1762272632270,-528.7229298,0.00032248,5]
[393102103,1762272632280,-600.0,0.00032283,30]
[393102106,1762272632290,-167.887747,0.00032666,2]
[393102108,1762272632300,-237.0,0.00033408,2]
[393102110,1762272632309,-1213.20348929,0.00033969,2]
[393102112,1762272632317,-500.0,0.0003502,5]
[393102113,1762272632326,-394.39882635,0.0003502,5]
[393102116,1762272632336,-412.0,0.00035072,2]
[393102118,1762272632345,-230.955,0.0003526,41]
[393102120,1762272632358,-720.0,0.00035511,30]
[393102122,1762272632368,-303.54589195,0.00035616,2]
[393102124,1762272632378,-200.0,0.00035795,120]
[393102126,1762272632388,-218.99699237,0.000359,2]
[393102128,1762272632398,-793.26,0.0003598,10]
[393102130,1762272632408,-1610.98399477,0.0003598,3]
[393102132,1762272632417,-1680.11040663,0.0003598,3]
[393102134,1762272632426,-336.77819774,0.00035989,15]
[393102136,1762272632436,-451.51862572,0.00035989,15]
[393102138,1762272632446,-96774.87950325,0.0003599,2]
[393102140,1762272632456,-1550.98,0.00036,2]
[393102142,1762272632467,-1550.98,0.000364,2]
[393102143,1762272632478,-1823.64,0.00036695,16]
[393102146,1762272632489,-319.0,0.00036791,2]
[393102148,1762272632501,-1550.98,0.000368,2]
[393102150,1762272632512,-152.46737503,0.00036866,7]
[393102152,1762272632522,-1823.61,0.00036875,17]
[393102154,1762272632533,-1213.20348929,0.00036907,3]
[393102156,1762272632545,-520.48003817,0.00036907,2]
[393102158,1762272632557,-500.0,0.00036973,5]
[393102160,1762272632568,-500.0,0.00036973,5]
[393102162,1762272632578,-500.0,0.00036973,5]
[393102164,1762272632588,-500.0,0.00036973,5]
[393102166,1762272632598,-500.0,0.00036973,5]
[393102168,1762272632608,-500.0,0.00036973,5]
[393102170,1762272632618,-257.4831139,0.00036973,2]
[393102172,1762272632632,-24164.7599215,0.00036985,3]
[393102174,1762272632643,-25201.6560994,0.00036985,3]
[393102176,1762272632654,-312.55532044,0.00036993,15]
[393102178,1762272632664,-370443.36455153,0.00036995,2]
[393102180,1762272632677,-1003.76434555,0.00036995,2]
[393102444,1762272640006,-364.27,0.00028807,2]
[393102446,1762272640016,-437.13,0.00030727,2]
[393102448,1762272640025,-509.98,0.00032648,2]
[393102450,1762272640035,-582.83,0.00034568,2]
[393102452,1762272640045,-655.69,0.00036489,2]
[393102454,1762272640054,-17456.79655107,0.00036995,2]
[393102456,1762272640065,-2972.48995059,0.00036995,2]
[393102625,1762272646016,-711.31570217,0.00036995,2]
[393102719,1762272927603,150.0,0.00019401,2]
[393102760,1762273006549,150.0,0.00017402,2]
[393102761,1762273006953,150.0,0.00018984,2]
[393102762,1762273007365,150.0,0.00020566,2]
[393102778,1762273079985,150.0,0.00015953,2]
[393102779,1762273080420,150.0,0.00017403,2]
[393102780,1762273080935,150.0,0.00018853,2]
[393102781,1762273081248,150.0,0.00020304,2]
[393102802,1762273298292,150.0,0.00016938,2]
[393104699,1762273685296,421.78027175,0.00010618,2]
[393104727,1762273687105,9264.61199638,0.000125,2]
[393104840,1762273695492,2119.2171678,0.000176,2]
[393104979,1762273705012,689.42449526,0.0001,7]
[393105009,1762273706587,26449.57527143,0.0002,20]
[393106939,1762273831971,-2049.46254192,0.00023159,2]
[393106941,1762273831982,-5000.0,0.00023259,2]
[393106942,1762273831991,-389.0,0.00023259,2]
[393106943,1762273832001,-300.0,0.00023723,20]
[393106944,1762273832010,-300.0,0.00023723,20]
[393106945,1762273832020,-300.0,0.00023723,20]
[393106946,1762273832030,-300.0,0.00023723,20]
[393106948,1762273832039,-300.0,0.00023723,20]
[393106949,1762273832048,-300.0,0.00023723,20]
[393106950,1762273832058,-300.0,0.00023723,20]
[393106951,1762273832068,-300.0,0.00023723,20]
[393106952,1762273832078,-300.0,0.00023723,20]
[393106955,1762273832098,-300.0,0.00023723,20]
[393106957,1762273832108,-300.0,0.00023723,20]
[393106959,1762273832118,-300.0,0.00023723,20]
[393106961,1762273832128,-300.0,0.00023723,20]
[393106964,1762273832141,-300.0,0.00023723,20]
[393106966,1762273832151,-300.0,0.00023723,20]
[393106969,1762273832161,-153.45650044,0.00025395,2]
[393106972,1762273832173,-207.13129403,0.00025495,2]
[393106975,1762273832183,-459.0,0.00027671,2]
[393106978,1762273832193,-622.57181198,0.00028223,60]
[393106980,1762273832203,-500.0,0.00028223,60]
[393106981,1762273832214,-200.0,0.00028224,14]
[393106982,1762273832224,-600.0,0.00028788,30]
[393106983,1762273832235,-717.46568967,0.00030232,2]
[393106985,1762273832245,-500.0,0.00030403,60]
[393106986,1762273832254,-231.50554477,0.00030404,2]
[393106987,1762273832264,-229.589,0.00030839,27]
[393106988,1762273832274,-720.0,0.00031666,30]
[393106989,1762273832284,-300.0,0.000328,2]
[393106990,1762273832294,-300.0,0.000328,2]
[393106992,1762273832304,-717.46568967,0.00032841,2]
[393106993,1762273832313,-500.0,0.00034073,60]
[393106994,1762273832323,-864.0,0.00034833,30]
[393106995,1762273832334,-350.82317461,0.00035,4]
[393106996,1762273832345,-717.46568967,0.00035449,3]
[393106997,1762273832354,-293.59447393,0.00035616,2]
[393106998,1762273832364,-10325.0,0.00036,7]
[393106999,1762273832374,-213.58544947,0.00036325,4]
[393107000,1762273832383,-247.0,0.00036368,2]
[393107002,1762273832394,-500.0,0.0003651,30]
[393107003,1762273832404,-1126.76503776,0.0003651,2]
[393107004,1762273832415,-1302.63,0.00036593,16]
[393107005,1762273832426,-20049.3028309,0.000367,30]
[393107006,1762273832436,-853.4371608,0.0003675,2]
[393107008,1762273832446,-500.0,0.00036798,15]
[393107009,1762273832455,-500.0,0.00036798,15]
[393107010,1762273832465,-606.09112201,0.00036798,15]
[393107011,1762273832475,-500.0,0.00036798,15]
[393107012,1762273832485,-500.0,0.00036798,15]
[393107013,1762273832496,-500.0,0.00036798,15]
[393107015,1762273832507,-500.0,0.00036798,15]
[393107016,1762273832519,-500.0,0.00036798,15]
[393107017,1762273832529,-500.0,0.00036799,15]
[393107018,1762273832539,-9162.74717565,0.000368,2]
[393107020,1762273832548,-2375.22,0.000368,2]
[393107021,1762273832558,-2375.22,0.000368,2]
[393107022,1762273832567,-2375.22,0.000368,2]
[393107023,1762273832576,-2375.22,0.000368,2]
[393107024,1762273832585,-2375.22,0.000368,2]
[393107025,1762273832595,-1126.76503776,0.00036807,2]
[393107027,1762273832605,-800.0,0.00036867,7]
[393107028,1762273832615,-500.0,0.00036873,5]
[393107029,1762273832624,-500.0,0.00036873,5]
[393107030,1762273832635,-500.0,0.00036873,5]
[393107031,1762273832645,-162.70895661,0.00036873,5]
[393107033,1762273832655,-500.0,0.00036873,5]
[393107034,1762273832665,-1302.57,0.00036875,17]
[393107035,1762273832676,-4832.9519844,0.00036883,3]
[393107036,1762273832686,-5040.33121995,0.00036883,3]
[393107038,1762273832697,-198.0,0.00036889,60]
[393107039,1762273832708,-500.0,0.00036889,60]
[393107040,1762273832718,-151.0,0.00036889,60]
[393107041,1762273832728,-218.78872431,0.00036892,15]
[393107042,1762273832737,-502943.94170747,0.00036893,2]
[393107044,1762273832750,-1535.85747175,0.00036893,2]
[393107045,1762273832761,-2371.35765132,0.00036893,2]
[393107046,1762273832781,-40972.64705354,0.00036893,2]
[393107047,1762273832792,-871.21080004,0.00036893,2]
[393107054,1762273833062,150.0,0.00019036,2]
[393107138,1762273837795,-194.92150562,0.00036799,15]
[393107140,1762273837807,-500.0,0.00036799,15]
[393107141,1762273837817,-324.10283838,0.00036799,15]
[393107142,1762273837829,-132.12950851,0.00036799,15]
[393107143,1762273837839,-500.0,0.00036799,15]
[393107144,1762273837848,-500.0,0.00036799,15]
[393107145,1762273837859,-500.0,0.00036799,15]
[393107146,1762273837868,-500.0,0.00036799,15]
[393107147,1762273837878,-500.0,0.00036799,15]
[393107148,1762273837888,-454.05773193,0.00036799,15]
[393107150,1762273837897,-500.0,0.00036799,15]
[393107151,1762273837906,-500.0,0.00036799,15]
[393107152,1762273837915,-272.48443994,0.00036799,15]
[393107153,1762273837928,-500.0,0.00036799,15]
[393107154,1762273837939,-500.0,0.00036799,15]
[393107156,1762273837949,-500.0,0.00036799,15]
[393107157,1762273837959,-500.0,0.00036799,15]
[393107158,1762273837970,-500.0,0.00036799,15]
[393107159,1762273837979,-500.0,0.00036799,15]
[393107160,1762273837989,-420.88083095,0.00036799,15]
[393107162,1762273837999,-500.0,0.00036799,15]
[393107163,1762273838009,-500.0,0.00036799,15]
[393107164,1762273838019,-500.0,0.00036799,15]
[393107165,1762273838029,-500.0,0.00036799,15]
[393107166,1762273838040,-500.0,0.00036799,15]
[393107167,1762273838050,-500.0,0.00036799,15]
[393107169,1762273838060,-500.0,0.00036799,15]
[393107170,1762273838069,-500.0,0.00036799,15]
[393107171,1762273838079,-500.0,0.00036799,15]
[393107172,1762273838089,-500.0,0.00036799,15]
[393107173,1762273838100,-500.0,0.00036799,15]
[393107174,1762273838110,-500.0,0.00036799,15]
[393107175,1762273838121,-500.0,0.00036799,15]
[393107177,1762273838132,-500.0,0.00036799,15]
[393107178,1762273838144,-500.0,0.00036799,15]
[393107179,1762273838156,-500.0,0.00036799,15]
[393107180,1762273838166,-500.0,0.00036799,15]
[393107181,1762273838177,-500.0,0.00036799,15]
[393107183,1762273838186,-23268.79548181,0.00036893,2]
[393107184,1762273838200,-22613.67051213,0.00036893,2]
[393107215,1762273840267,-263.98648147,0.00036799,2]
[393107216,1762273840278,-10645.0,0.00036799,2]
[393107270,1762273842985,-744.13587634,0.00036524,2]
[393107271,1762273842996,-2031.17352789,0.00036524,2]
[393107272,1762273843006,-4502.10526388,0.00036799,2]
[393107273,1762273843015,-10234.58772142,0.00036893,2]
[393107275,1762273843026,-8723.665,0.00036893,2]
[393107276,1762273843048,-10149.78,0.00036893,2]
[393107353,1762273846275,-412.0,0.00036693,2]
[393107354,1762273846285,-19789.08048276,0.00036893,2]
[393107355,1762273846298,-680.90757339,0.00036893,2]
[393107356,1762273846310,-376.68,0.00036893,2]
[393107358,1762273846337,-2270.81,0.00036893,2]
[393107359,1762273846349,-9642.64165883,0.00036893,2]
[393109115,1762273969502,150.0,0.00019105,2]
[393109116,1762273969923,150.0,0.00020842,2]
[393109128,1762274038030,150.0,0.0001904,2]
[393109129,1762274038458,150.0,0.00020771,2]
[393109130,1762274104423,150.0,0.00019215,2]
[393109131,1762274104819,150.0,0.00020961,2]
[393109237,1762274244488,5000.0,0.00032877,120]
[393109347,1762275032082,-150.0,0.00024985,2]
[393109349,1762275032092,-292.85084715,0.00026985,2]
[393109351,1762275032101,-212.14439383,0.00029068,32]
[393109353,1762275032111,-151.0,0.00030137,14]
[393109355,1762275032120,-574.43163795,0.00030918,2]
[393109357,1762275032130,-155.0,0.00030918,2]
[393109359,1762275032139,-278.12346063,0.00031757,2]
[393109361,1762275032148,-1963.6162257,0.0003272,2]
[393109363,1762275032158,-151.0,0.00032845,2]
[393109365,1762275032169,-151.0,0.00032845,2]
[393109368,1762275032179,-1200.0,0.00032861,3]
[393109371,1762275032188,-300.0,0.00032861,3]
[393109374,1762275032197,-1200.0,0.00032862,3]
[393109377,1762275032207,-300.0,0.00032862,3]
[393109379,1762275032216,-300.0,0.00032862,3]
[393109381,1762275032225,-300.0,0.00032862,2]
[393109383,1762275032234,-7644.31275407,0.00032863,2]
[393109385,1762275032244,-500.0,0.00032869,60]
[393109387,1762275032253,-500.0,0.00032869,60]
[393109389,1762275032262,-274.05848727,0.00032869,2]
[393109391,1762275032275,-225.94151273,0.00032869,2]
[393109393,1762275032284,-500.0,0.00032869,2]
[393109395,1762275032293,-250.55577261,0.00032869,2]
[393109397,1762275032303,-407.79227785,0.00032869,2]
[393109399,1762275032312,-549.10754274,0.00032869,2]
[393109400,1762275032322,-500.0,0.00032869,2]
[393109401,1762275032331,-571.76453677,0.00032869,2]
[393109402,1762275032340,-500.0,0.00032869,2]
[393109403,1762275032349,-43009.0,0.0003287,7]
[393109404,1762275032358,-500.0,0.00032873,5]
[393109405,1762275032367,-2090.29,0.000329,2]
[393109406,1762275032375,-500.0,0.00033133,5]
[393109407,1762275032385,-500.0,0.00033133,5]
[393109408,1762275032394,-500.0,0.00033133,5]
[393109409,1762275032403,-255.37971362,0.00033133,5]
[393109410,1762275032412,-500.0,0.00033133,5]
[393109411,1762275032423,-277.67694759,0.00033196,2]
[393109412,1762275032432,-2090.29,0.000332,2]
[393109413,1762275032441,-1000.0,0.00033421,5]
[393109414,1762275032450,-331.64,0.00033457,30]
[393109415,1762275032458,-300.0,0.00033526,30]
[393109416,1762275032467,-300.0,0.00033526,30]
[393109417,1762275032476,-300.0,0.00033526,30]
[393109418,1762275032485,-300.0,0.00033526,30]
[393109419,1762275032495,-300.0,0.00033526,30]
[393109420,1762275032504,-300.0,0.00033526,30]
[393109421,1762275032514,-300.0,0.00033526,30]
[393109422,1762275032525,-300.0,0.00033526,30]
[393109423,1762275032534,-300.0,0.00033526,30]
[393109424,1762275032543,-300.0,0.00033526,30]
[393109425,1762275032552,-300.0,0.00033526,30]
[393109426,1762275032562,-300.0,0.00033526,30]
[393109427,1762275032571,-300.0,0.00033526,30]
[393109428,1762275032580,-300.0,0.00033526,30]
[393109429,1762275032589,-300.0,0.00033526,30]
[393109430,1762275032598,-500.0,0.00033526,30]
[393109432,1762275032608,-600.0,0.00033557,30]
[393109433,1762275032617,-2090.29,0.000336,2]
[393109434,1762275032626,-1000.0,0.00033681,5]
[393109436,1762275032635,-500.0,0.000338,30]
[393109438,1762275032644,-163.0,0.00034,65]
[393109440,1762275032653,-2090.29,0.00034,2]
[393109442,1762275032663,-500.0,0.00034074,30]
[393109444,1762275032673,-2090.29,0.000343,2]
[393109446,1762275032683,-500.0,0.00034348,30]
[393109448,1762275032693,-2090.29,0.000347,2]
[393109450,1762275032702,-313.5910818,0.00035048,2]
[393109452,1762275032711,-358.03141796,0.00035048,2]
[393109454,1762275032720,-2090.29,0.000351,2]
[393109456,1762275032729,-278.12346063,0.00035158,3]
[393109458,1762275032738,-1000.0,0.00035226,2]
[393109460,1762275032747,-1000.0,0.00035226,2]
[393109462,1762275032757,-1000.0,0.00035226,2]
[393109463,1762275032766,-1000.0,0.00035226,2]
[393109466,1762275032776,-923.09341047,0.00035226,2]
[393109468,1762275032785,-2090.29,0.000354,2]
[393109470,1762275032795,-283.9693022,0.00035616,2]
[393109471,1762275032804,-543.76248642,0.0003578,3]
[393109473,1762275032814,-842.36029902,0.0003579,3]
[393109475,1762275032823,-2090.29,0.000358,2]
[393109477,1762275032834,-574.43163795,0.00035905,3]
[393109480,1762275032844,-168.0,0.00036015,2]
[393109482,1762275032853,-168.0,0.00036021,2]
[393109484,1762275032863,-168.0,0.0003616,2]
[393109486,1762275032874,-168.0,0.00036318,2]
[393109488,1762275032883,-266.97179148,0.00036328,4]
[393109490,1762275032893,-622.38121762,0.00036328,4]
[393109491,1762275032902,-168.0,0.00036406,120]
[393109494,1762275032913,-162.872853,0.00036583,7]
[393109496,1762275032928,-1059.7670915,0.00036607,2]
[393109498,1762275032938,-1283.07765332,0.0003661,2]
[393109500,1762275032948,-2163.0,0.00036693,2]
[393109502,1762275032957,-627.0,0.00036693,2]
[393109504,1762275032967,-985.0,0.00036693,2]
[393109506,1762275032979,-412.0,0.00036693,2]
[393109508,1762275032989,-4394.0,0.00036693,2]
[393109510,1762275032999,-168.0,0.00036843,2]
[393109511,1762275033009,-151.0,0.00036889,60]
[393109514,1762275033019,-151.0,0.00036889,60]
[393109516,1762275033029,-151.0,0.00036889,60]
[393109518,1762275033040,-411.99251196,0.00036893,2]
[393109520,1762275033050,-343.02233075,0.00036893,2]
[393109522,1762275033061,-617.44019534,0.00036893,2]
[393109524,1762275033071,-405.00643168,0.00036893,2]
[393109526,1762275033081,-720.0,0.00036913,30]
[393109528,1762275033090,-249.0,0.00036913,2]
[393109530,1762275033100,-151.0,0.00036944,60]
[393109532,1762275033109,-200.79985843,0.00036999,60]
[393109534,1762275033119,-3809.0,0.00037,2]
[393109536,1762275033129,-500.0,0.00037,3]
[393109538,1762275033139,-191.8851717,0.000371,120]
[393109540,1762275033149,-185.19060245,0.000371,120]
[393109542,1762275033158,-211.3686592,0.000371,120]
[393109544,1762275033171,-679.59516131,0.000371,120]
[393109546,1762275033181,-938.66204273,0.000371,120]
[393109548,1762275033191,-168.0,0.0003713,120]
[393109550,1762275033200,-168.0,0.00037161,7]
[393109552,1762275033209,-740.67,0.00037165,3]
[393109554,1762275033219,-1684.72059804,0.00037165,3]
[393109556,1762275033228,-1087.52497284,0.00037165,3]
[393109558,1762275033238,-500.0,0.00037173,5]
[393109560,1762275033247,-500.0,0.00037173,5]
[393109562,1762275033256,-501.53688474,0.00037173,5]
[393109564,1762275033266,-500.0,0.00037173,5]
[393109566,1762275033275,-500.0,0.00037173,5]
[393109568,1762275033285,-100188.37282485,0.00037175,2]
[393109570,1762275033293,-159.28,0.000372,7]
[393109571,1762275033303,-247.0,0.00037268,7]
[393109573,1762275033312,-153.0,0.00037283,30]
[393109575,1762275033321,-470.37773651,0.00037316,2]
[393109577,1762275033330,-247.0,0.000374,2]
[393109579,1762275033340,-157.19451892,0.00037452,30]
[393109581,1762275033349,-168.0,0.00037522,2]
[393109583,1762275033359,-155.70034022,0.00037533,15]
[393109585,1762275033370,-168.0,0.00037534,2]
[393109588,1762275033380,-150.31,0.00037546,60]
[393109589,1762275033390,-168.0,0.00037572,2]
[393109591,1762275033400,-842.36029902,0.0003759,3]
[393109593,1762275033409,-543.76248642,0.0003759,3]
[393109595,1762275033421,-8874.39,0.000376,14]
[393109598,1762275033431,-236.03,0.000376,30]
[393109599,1762275033441,-202.23,0.00037603,2]
[393109602,1762275033453,-246.89,0.00037624,3]
[393109604,1762275033463,-151.0,0.00037634,31]
[393109606,1762275033472,-151.0,0.00037634,31]
[393109608,1762275033482,-74688.63811373,0.00037634,30]
[393109610,1762275033492,-282.0,0.00037634,120]
[393109612,1762275033502,-150000.0,0.00037634,32]
[393109614,1762275033511,-5630.5922019,0.00037634,120]
[393109615,1762275033523,-9999.999999,0.00037634,30]
[393109617,1762275033533,-1677.24816463,0.00037634,30]
[393109619,1762275033542,-156.374,0.00037634,2]
[393109621,1762275033552,-628.77323402,0.00037634,20]
[393109633,1762275033663,-250.0,0.00037634,10]
[393109635,1762275033679,-250.0,0.00037634,10]
[393109638,1762275033690,-250.0,0.00037634,10]
[393109640,1762275033700,-295.170757,0.00037634,10]
[393109642,1762275033711,-150.31,0.00037646,60]
[393109643,1762275033723,-500.0,0.00037673,5]
[393109646,1762275033733,-150.0,0.00037673,5]
[393109648,1762275033744,-500.0,0.00037673,5]
[393109650,1762275033754,-500.0,0.00037673,5]
[393109651,1762275033764,-157.19451892,0.00037699,30]
[393109653,1762275033774,-247.0,0.00037705,2]
[393109655,1762275033784,-776.65773248,0.00037721,5]
[393109657,1762275033793,-1002.85051092,0.00037721,5]
[393109659,1762275033802,-1000.0,0.00037721,5]
[393109661,1762275033811,-498.10391207,0.00037721,5]
[393109663,1762275033820,-150.31,0.00037746,60]
[393109665,1762275033830,-1444.0,0.00037753,120]
[393109667,1762275033840,-247.0,0.00037793,7]
[393109669,1762275033849,-4000.0,0.00037805,7]
[393109671,1762275033858,-4000.0,0.00037805,7]
[393109672,1762275033867,-4000.0,0.00037805,7]
[393109674,1762275033876,-4000.0,0.00037805,7]
[393109676,1762275033885,-4000.0,0.00037805,7]
[393109678,1762275033894,-4000.0,0.00037805,7]
[393109680,1762275033904,-4000.0,0.00037805,7]
[393109682,1762275033913,-4000.0,0.00037805,7]
[393109684,1762275033927,-150.31,0.00037846,60]
[393109686,1762275033936,-162.872853,0.00037912,7]
[393109688,1762275033946,-157.19451892,0.00037945,30]
[393109691,1762275033956,-150.31,0.00037946,60]
[393109692,1762275033966,-842.36029902,0.0003798,3]
[393109693,1762275033975,-543.76248642,0.0003798,3]
[393109694,1762275033984,-13057.54734702,0.0003799,2]
[393109695,1762275033993,-1000.0,0.00038,2]
[393109696,1762275034003,-234.0,0.00038,120]
[393109698,1762275034013,-502.05279536,0.00038,10]
[393109699,1762275034022,-247.0,0.00038036,120]
[393109700,1762275034031,-150.31,0.00038046,60]
[393109701,1762275034041,-150.31,0.00038146,60]
[393109702,1762275034050,-159.0,0.000382,120]
[393109703,1762275034060,-191.8851717,0.000382,120]
[393109704,1762275034070,-185.19060245,0.000382,120]
[393109705,1762275034079,-679.59516131,0.000382,120]
[393109706,1762275034088,-938.66204273,0.000382,120]
[393109707,1762275034098,-1434.62,0.000382,14]
[393109708,1762275034107,-168.0,0.00038212,7]
[393109709,1762275034117,-157.19451892,0.00038219,30]
[393109710,1762275034126,-1000.0,0.00038221,5]
[393109711,1762275034135,-250.0,0.00038221,5]
[393109712,1762275034145,-500.0,0.00038221,5]
[393109713,1762275034154,-500.0,0.00038221,5]
[393109714,1762275034163,-150.31,0.00038246,60]
[393109715,1762275034178,-1500.0,0.00038268,5]
[393109716,1762275034188,-200.0,0.00038288,120]
[393109717,1762275034198,-168.0,0.00038322,7]
[393109718,1762275034208,-150.31,0.00038346,60]
[393109719,1762275034230,-247.0,0.00038392,2]
[393109720,1762275034250,-150.44,0.00038446,120]
[393109721,1762275034262,-157.19451892,0.00038466,30]
[393109722,1762275034273,-1096.57378693,0.00038471,2]
[393109723,1762275034284,-278.12346063,0.00038559,4]
[393109724,1762275034294,-8874.39,0.000387,14]
[393109725,1762275034304,-157.19451892,0.00038712,30]
[393109726,1762275034313,-346.72997252,0.00038768,5]
[393109727,1762275034323,-300.6995191,0.00038768,5]
[393109728,1762275034332,-842.36029902,0.00038795,3]
[393109729,1762275034342,-543.76248642,0.00038795,3]
[393109730,1762275034351,-236.03,0.000388,30]
[393109731,1762275034361,-4000.0,0.00038805,7]
[393109732,1762275034370,-4000.0,0.00038805,7]
[393109733,1762275034379,-4000.0,0.00038805,7]
[393109734,1762275034389,-4000.0,0.00038805,7]
[393109735,1762275034398,-4000.0,0.00038805,7]
[393109736,1762275034407,-4000.0,0.00038805,7]
[393109737,1762275034419,-4000.0,0.00038805,7]
[393109738,1762275034429,-4000.0,0.00038805,7]
[393109739,1762275034438,-289.171264,0.00038805,120]
[393109740,1762275034448,-2000.0,0.00038816,5]
[393109741,1762275034458,-150.0,0.00038873,5]
[393109742,1762275034468,-168.0,0.00038932,2]
[393109743,1762275034480,-157.19451892,0.00038959,30]
[393109744,1762275034491,-493.78,0.00038994,3]
[393109745,1762275034501,-18287.22670823,0.00039,120]
[393109746,1762275034511,-150.0,0.00039,2]
[393109747,1762275034524,-150.0,0.00039,3]
[393109748,1762275034535,-157.19451892,0.00039205,30]
[393109749,1762275034544,-500.0,0.00039298,120]
[393109750,1762275034554,-1500.0,0.00039364,5]
[393109751,1762275034565,-185.19060245,0.000394,120]
[393109752,1762275034575,-679.59516131,0.000394,120]
[393109753,1762275034584,-938.66204273,0.000394,120]
[393109754,1762275034594,-1434.62,0.000394,14]
[393109755,1762275034605,-543.76248642,0.00039411,3]
[393109756,1762275034614,-450.0,0.00039421,5]
[393109757,1762275034623,-157.19451892,0.00039452,30]
[393109758,1762275034633,-162.872853,0.0003954,20]
[393109759,1762275034643,-412.0,0.00039693,2]
[393109760,1762275034653,-2842.22305387,0.000397,24]
[393109761,1762275034664,-842.36029902,0.00039795,3]
[393109762,1762275034678,-159.28,0.000398,7]